[Event "Chile-ch Absolute 2018-19"]
[Site "Santiago"]
[Date "2019.02.23"]
[Round "5.1"]
[White "Vergara Jofre, Felipe"]
[Black "Gasic Merino, Franco"]
[Result "1/2-1/2"]
[ECO "B01"]
[WhiteElo "2265"]
[BlackElo "2189"]
[Annotator "RC"]
[PlyCount "142"]
[EventDate "2019.02.20"]
[EventType "tourn"]
[EventCountry "CHI"]
[SourceTitle "playchess.com"]
[Source "ChessBase"]
[SourceQuality "1"]
[TimeControl "5400+30"]

1. e4 {[%emt 0:00:00]} d5 {[%emt 0:00:00]} 2. exd5 {[%emt 0:00:00]} Nf6 {[%emt 0:00:00]} 3. Nf3 {[%emt 0:00:04]} Qxd5 {[%emt 0:00:00]} 4. d4 {[%emt 0:00:42]} Bg4 {[%emt 0:00:25]} 5. Be2 {[%emt 0:00:08]} Nc6 {[%emt 0:00:32]} 6. c4 {[%emt 0:00:34]} Qd7 {[%emt 0:00:26]} 7. Be3 {[%emt 0:01:45]} e6 {[%emt 0:02:48]} 8. O-O {[%emt 0:03:11]} Be7 {[%emt 0:05:16]} 9. Nbd2 {[%emt 0:16:28]} O-O {[%emt 0:06:50]} 10. Ne5 {[%emt 0:09:19]} Bxe2 {[%emt 0:04:59]} 11. Qxe2 {[%emt 0:00:15]} Qd6 {[%emt 0:06:11]} 12. Ndf3 {[%emt 0:01:55]} Nd7 {[%emt 0:01:32]} 13. Nxd7 {[%emt 0:17:23]} Qxd7 {[%emt 0:00:02]} 14. Rfd1 {[%emt 0:00:16]} Bf6 {[%emt 0:04:37]} 15. Rd2 {[%emt 0:01:49]} Qe7 {[%emt 0:06:00]} 16. Re1 {[%emt 0:06:36]} Rfe8 {[%emt 0:02:17]} 17. Qd1 {[%emt 0:01:14]} Rad8 {[%emt 0:07:51]} 18. a3 {[%emt 0:05:20]} a6 {[%emt 0:03:27]} 19. b4 {[%emt 0:01:48]} Qd7 {[%emt 0:02:43]} 20. h3 {[%emt 0:02:57]} h6 {[%emt 0:02:29]} 21. Qc2 {[%emt 0:05:44]} Ne7 {[%emt 0:05:39]} 22. Bf4 {[%emt 0:03:06]} Ng6 {[%emt 0:09:06]} 23. Bg3 {[%emt 0:01:57]} c6 {[%emt 0:02:58]} 24. Red1 {[%emt 0:03:06]} Qc8 {[%emt 0:01:40]} 25. Qe4 {[%emt 0:04:12]} Rd7 {[%emt 0:02:04]} 26. Qg4 {[%emt 0:01:55]} Qd8 {[%emt 0:08:55]} 27. h4 {[%emt 0:01:12]} Qe7 {[%emt 0:01:32]} 28. h5 {[%emt 0:02:01]} Nf8 {[%emt 0:00:09]} 29. Ne5 {[%emt 0:02:44]} Bxe5 {[%emt 0:02:57]} 30. dxe5 {[%emt 0:00:01]} Rxd2 {[%emt 0:02:08]} 31. Rxd2 {[%emt 0:00:01]} Qg5 {[%emt 0:01:00]} 32. Qd1 {[%emt 0:00:37]} Qf5 {[%emt 0:01:11]} 33. Rd4 {[%emt 0:02:15]} Ra8 {[%emt 0:01:23]} 34. Rf4 {[%emt 0:00:42]} Qg5 {[%emt 0:00:31]} 35. Qf3 {[%emt 0:00:39]} Nd7 {[%emt 0:03:36]} 36. Rxf7 {[%emt 0:02:58]} Rf8 {[%emt 0:00:03]} 37. Rxf8+ {[%emt 0:00:27]} Nxf8 {[%emt 0:00:01]} 38. Qd1 {[%emt 0:01:24]} Qf5 {[%emt 0:00:43]} 39. Qe2 {[%emt 0:01:31]} Qb1+ {[%emt 0:00:57]} 40. Kh2 {[%emt 0:00:01]} Qb3 {[%emt 0:02:05]} 41. Bh4 {[%emt 0:00:59]} Qxa3 {[%emt 0:01:07]} 42. Be7 {[%emt 0:00:01]} Qc3 {[%emt 0:00:33]} 43. Qe4 {[%emt 0:00:57]} Qc1 {[%emt 0:01:07]} 44. Qg4 {[%emt 0:01:05]} Qd2 {[%emt 0:00:49]} 45. Bf6 {[%emt 0:00:20]} Qd7 {[%emt 0:00:11]} 46. f4 {[%emt 0:00:39]} Kh7 {[%emt 0:00:20]} 47. Bh4 {[%emt 0:00:08]} Qf7 {[%emt 0:00:31]} 48. Qf3 {[%emt 0:00:29]} Kg8 {[%emt 0:01:16]} 49. g4 {[%emt 0:00:31]} Qd7 {[%emt 0:00:47]} 50. f5 {[%emt 0:00:47]} Qd2+ {[%emt 0:00:14]} 51. Kh3 {[%emt 0:00:08]} exf5 {[%emt 0:00:47]} 52. gxf5 {[%emt 0:00:12]} Qxb4 {[%emt 0:00:35]} 53. e6 {[%emt 0:00:43]} Nh7 {[%emt 0:00:17]} 54. e7 {[%emt 0:00:57]} Kf7 {[%emt 0:00:01]} 55. Qe3 {[%emt 0:00:29]} Ke8 {[%emt 0:00:08]} 56. Qd3 {[%emt 0:00:14]} Kf7 {[%emt 0:01:13]} 57. Qe3 {[%emt 0:00:07]} Ke8 {[%emt 0:00:24]} 58. Qd3 {[%emt 0:00:01]} Kf7 {[%emt 0:00:01]} 59. Qd7 {[%emt 0:01:44]} Qc3+ {[%emt 0:01:13]} 60. Kg2 {[%emt 0:00:19]} Qc2+ {[%emt 0:00:24]} 61. Kf1 {[%emt 0:00:34]} Qc1+ {[%emt 0:00:21]} 62. Kf2 {[%emt 0:00:44]} Qc2+ {[%emt 0:00:47]} 63. Ke3 {[%emt 0:00:32]} Qc1+ {[%emt 0:00:34]} 64. Kf2 {[%emt 0:00:30]} Qc2+ {[%emt 0:00:30]} 65. Kg3 {[%emt 0:00:26]} Qc3+ {[%emt 0:00:19]} 66. Kg2 {[%emt 0:00:12]} Qc2+ {[%emt 0:00:12]} 67. Kh3 {[%emt 0:00:34]} Qc3+ {[%emt 0:00:18]} 68. Kg2 {[%emt 0:00:46]} Qc2+ {[%emt 0:00:05]} 69. Kg1 {[%emt 0:00:25]} Qc1+ {[%emt 0:00:07]} 70. Kg2 {[%emt 0:00:34]} Qc2+ {[%emt 0:00:06]} 71. Kg3 {[%emt 0:00:33]} Qc3+ {[%emt 0:00:08]} 1/2-1/2

[Event "Chile-ch Absolute 2018-19"]
[Site "Santiago"]
[Date "2019.02.24"]
[Round "7.2"]
[White "Olivares Olivares, Claudio"]
[Black "Vergara Jofre, Felipe"]
[Result "1-0"]
[ECO "B33"]
[WhiteElo "2387"]
[BlackElo "2265"]
[Annotator "NA"]
[PlyCount "107"]
[EventDate "2019.02.20"]
[EventType "tourn"]
[EventCountry "CHI"]
[SourceTitle "playchess.com"]
[Source "ChessBase"]
[SourceQuality "1"]
[TimeControl "5400+30"]

1. e4 {[%emt 0:00:00]} c5 {[%emt 0:00:00]} 2. Nf3 {[%emt 0:00:00]} Nc6 {[%emt 0:00:00]} 3. d4 {[%emt 0:00:00]} cxd4 {[%emt 0:00:00]} 4. Nxd4 {[%emt 0:00:00]} Nf6 {[%emt 0:00:00]} 5. Nc3 {[%emt 0:00:00]} e5 {[%emt 0:00:00]} 6. Ndb5 {[%emt 0:00:05]} d6 {[%emt 0:00:00]} 7. Bg5 {[%emt 0:00:08]} a6 {[%emt 0:00:00]} 8. Na3 {[%emt 0:00:10]} b5 {[%emt 0:00:00]} 9. Bxf6 {[%emt 0:00:05]} gxf6 {[%emt 0:00:00]} 10. Nd5 {[%emt 0:00:05]} Bg7 {[%emt 0:00:08]} 11. Bd3 {[%emt 0:00:05]} O-O {[%emt 0:04:29]} 12. O-O {[%emt 0:02:16]} Ne7 {[%emt 0:05:23]} 13. Nxe7+ {[%emt 0:01:12]} Qxe7 {[%emt 0:00:07]} 14. c4 {[%emt 0:00:04]} f5 {[%emt 0:03:36]} 15. Qf3 {[%emt 0:00:09]} bxc4 {[%emt 0:01:59]} 16. Nxc4 {[%emt 0:04:15]} d5 {[%emt 0:00:06]} 17. exd5 {[%emt 0:00:58]} e4 {[%emt 0:00:22]} 18. Qe3 {[%emt 0:00:06]} Bb7 {[%emt 0:06:09]} 19. Nb6 {[%emt 0:08:07]} Rad8 {[%emt 0:02:04]} 20. Bc4 {[%emt 0:00:23]} f4 {[%emt 0:10:16]} 21. Qb3 {[%emt 0:04:57]} Bd4 {[%emt 0:03:45]} 22. Rad1 {[%emt 0:00:25]} Qe5 {[%emt 0:02:42]} 23. Na4 {[%emt 0:03:12]} Bxd5 {[%emt 0:04:09]} 24. Bxd5 {[%emt 0:00:08]} Rxd5 {[%emt 0:00:48]} 25. Nc3 {[%emt 0:08:13]} Rd6 {[%emt 0:02:31]} 26. Ne2 {[%emt 0:00:47]} Bc5 {[%emt 0:03:15]} 27. Rxd6 {[%emt 0:03:31]} Bxd6 {[%emt 0:00:08]} 28. Rd1 {[%emt 0:00:31]} Rb8 {[%emt 0:03:50]} 29. Qh3 {[%emt 0:05:09]} Rxb2 {[%emt 0:03:54]} 30. Qc8+ {[%emt 0:03:33]} Kg7 {[%emt 0:05:17]} 31. Qg4+ {[%emt 0:00:07]} Kf8 {[%emt 0:18:24]} 32. Qc8+ {[%emt 0:00:06]} Ke7 {[%emt 0:00:17]} 33. Qxa6 {[%emt 0:06:14]} Bc5 {[%emt 0:07:27]} 34. Qc8 {[%emt 0:10:55]} Qd6 {[%emt 0:13:39]} 35. Nc3 {[%emt 0:04:03]} Bxf2+ {[%emt 0:00:02]} 36. Kh1 {[%emt 0:00:52]} Re2 {[%emt 0:02:40]} 37. Qb7+ {[%emt 0:11:23]} Kf8 {[%emt 0:00:01]} 38. Qc8+ {[%emt 0:00:10]} Ke7 {[%emt 0:00:04]} 39. Qb7+ {[%emt 0:01:10]} Kf8 {[%emt 0:00:03]} 40. Qb1 {[%emt 0:02:20]} Rd2 {[%emt 0:01:13]} 41. Rxd2 {[%emt 0:00:11]} Qxd2 {[%emt 0:00:02]} 42. Nxe4 {[%emt 0:00:06]} Qe3 {[%emt 0:01:20]} 43. Qb8+ {[%emt 0:01:08]} Kg7 {[%emt 0:00:11]} 44. Qe5+ {[%emt 0:00:20]} Kf8 {[%emt 0:00:47]} 45. Qd6+ {[%emt 0:03:10]} Kg7 {[%emt 0:00:20]} 46. Qf6+ {[%emt 0:00:18]} Kf8 {[%emt 0:00:40]} 47. Qh6+ {[%emt 0:00:37]} Ke8 {[%emt 0:00:20]} 48. Nf6+ {[%emt 0:00:26]} Kd8 {[%emt 0:00:05]} 49. Qf8+ {[%emt 0:00:04]} Kc7 {[%emt 0:00:19]} 50. Nd5+ {[%emt 0:00:06]} Kc6 {[%emt 0:00:06]} 51. Nxe3 {[%emt 0:00:16]} fxe3 {[%emt 0:00:01]} 52. Qxf7 {[%emt 0:00:16]} Kc5 {[%emt 0:00:11]} 53. Qxh7 {[%emt 0:00:23]} Kd4 {[%emt 0:00:12]} 54. Qc2 {[%emt 0:00:05]} 1-0

[Event "Chile-ch Absolute 2018-19"]
[Site "Santiago"]
[Date "2019.02.25"]
[Round "7.3"]
[White "Tapia Fuentes, Jaime"]
[Black "Torres Bravo, Cristobal"]
[Result "1-0"]
[ECO "A05"]
[WhiteElo "2259"]
[BlackElo "2347"]
[Annotator "NA"]
[PlyCount "121"]
[EventDate "2019.02.20"]
[EventType "tourn"]
[EventCountry "CHI"]
[SourceTitle "playchess.com"]
[Source "ChessBase"]
[SourceQuality "1"]
[TimeControl "5400+30"]

1. Nf3 {[%emt 0:00:00]} Nf6 {[%emt 0:00:39]} 2. g3 {[%emt 0:00:00]} b5 {[%emt 0:01:00]} 3. Bg2 {[%emt 0:01:05]} Bb7 {[%emt 0:00:05]} 4. O-O {[%emt 0:00:58]} e6 {[%emt 0:02:29]} 5. c3 {[%emt 0:03:15]} c5 {[%emt 0:02:54]} 6. d3 {[%emt 0:00:49]} d5 {[%emt 0:01:04]} 7. a4 {[%emt 0:01:33]} b4 {[%emt 0:00:27]} 8. cxb4 {[%emt 0:02:54]} cxb4 {[%emt 0:00:19]} 9. Nbd2 {[%emt 0:00:29]} Nbd7 {[%emt 0:03:18]} 10. Nb3 {[%emt 0:03:25]} Be7 {[%emt 0:03:31]} 11. Bd2 {[%emt 0:04:40]} O-O {[%emt 0:00:42]} 12. a5 {[%emt 0:03:40]} Nb8 {[%emt 0:07:23]} 13. Nfd4 {[%emt 0:08:30]} Na6 {[%emt 0:00:54]} 14. e3 {[%emt 0:06:43]} Nd7 {[%emt 0:05:03]} 15. f4 {[%emt 0:05:52]} Ndc5 {[%emt 0:04:26]} 16. Nxc5 {[%emt 0:07:21]} Bxc5 {[%emt 0:00:08]} 17. Nb3 {[%emt 0:00:12]} Bd6 {[%emt 0:01:32]} 18. Qe2 {[%emt 0:15:22]} Rc8 {[%emt 0:09:11]} 19. Rfc1 {[%emt 0:04:05]} Qd7 {[%emt 0:02:25]} 20. d4 {[%emt 0:03:31]} Rxc1+ {[%emt 0:03:07]} 21. Nxc1 {[%emt 0:00:09]} Rc8 {[%emt 0:01:27]} 22. Nd3 {[%emt 0:06:18]} Qe7 {[%emt 0:13:47]} 23. Qe1 {[%emt 0:02:28]} Rc2 {[%emt 0:02:06]} 24. Bf3 {[%emt 0:00:39]} Rc8 {[%emt 0:01:22]} 25. Bg2 {[%emt 0:00:24]} Rc7 {[%emt 0:00:26]} 26. Bf3 {[%emt 0:03:22]} Bc8 {[%emt 0:01:48]} 27. Be2 {[%emt 0:01:04]} f6 {[%emt 0:01:06]} 28. Rc1 {[%emt 0:01:50]} Rxc1 {[%emt 0:01:36]} 29. Qxc1 {[%emt 0:00:07]} Bb7 {[%emt 0:09:23]} 30. Qc2 {[%emt 0:00:35]} h6 {[%emt 0:06:19]} 31. Qa4 {[%emt 0:02:57]} Kh7 {[%emt 0:03:46]} 32. Kf2 {[%emt 0:00:51]} Bc8 {[%emt 0:06:21]} 33. Qc2 {[%emt 0:00:07]} Qc7 {[%emt 0:00:47]} 34. Nxb4+ {[%emt 0:00:12]} Qxc2 {[%emt 0:00:50]} 35. Nxc2 {[%emt 0:00:01]} Kg8 {[%emt 0:00:35]} 36. b4 {[%emt 0:01:16]} Kf8 {[%emt 0:00:10]} 37. b5 {[%emt 0:00:24]} Nb8 {[%emt 0:00:07]} 38. Bb4 {[%emt 0:00:22]} Ke7 {[%emt 0:00:09]} 39. Ke1 {[%emt 0:04:44]} Kd7 {[%emt 0:02:35]} 40. Bxd6 {[%emt 0:00:45]} Kxd6 {[%emt 0:00:05]} 41. Kd2 {[%emt 0:00:10]} a6 {[%emt 0:01:27]} 42. Kc3 {[%emt 0:00:05]} axb5 {[%emt 0:02:08]} 43. Bxb5 {[%emt 0:00:11]} Ba6 {[%emt 0:00:57]} 44. Bxa6 {[%emt 0:02:51]} Nxa6 {[%emt 0:00:01]} 45. Nb4 {[%emt 0:00:12]} Nc7 {[%emt 0:00:18]} 46. Nd3 {[%emt 0:01:24]} Kc6 {[%emt 0:01:07]} 47. Kb4 {[%emt 0:00:20]} Na6+ {[%emt 0:00:37]} 48. Ka4 {[%emt 0:00:09]} Nc7 {[%emt 0:00:29]} 49. Nc5 {[%emt 0:01:13]} e5 {[%emt 0:00:31]} 50. f5 {[%emt 0:02:06]} exd4 {[%emt 0:00:36]} 51. exd4 {[%emt 0:00:01]} Nb5 {[%emt 0:01:04]} 52. Ne6 {[%emt 0:00:23]} Nc3+ {[%emt 0:00:43]} 53. Kb4 {[%emt 0:00:12]} Na2+ {[%emt 0:00:27]} 54. Kb3 {[%emt 0:00:45]} Nc1+ {[%emt 0:00:09]} 55. Kc2 {[%emt 0:00:43]} Na2 {[%emt 0:00:40]} 56. Nxg7 {[%emt 0:00:18]} Kb5 {[%emt 0:00:29]} 57. Nh5 {[%emt 0:00:58]} Kc4 {[%emt 0:00:04]} 58. Nxf6 {[%emt 0:00:24]} Nb4+ {[%emt 0:00:12]} 59. Kd2 {[%emt 0:00:11]} Nc6 {[%emt 0:00:55]} 60. a6 {[%emt 0:00:19]} Kb5 {[%emt 0:01:02]} 61. Nxd5 {[%emt 0:00:20]} 1-0

[Event "Chile-ch Absolute 2018-19"]
[Site "Santiago"]
[Date "2019.02.27"]
[Round "10.1"]
[White "Gasic Merino, Franco"]
[Black "Salinas Herrera, Pablo"]
[Result "1/2-1/2"]
[ECO "E20"]
[WhiteElo "2189"]
[BlackElo "2477"]
[Annotator "ChessBase"]
[PlyCount "62"]
[EventDate "2019.02.20"]
[EventType "tourn"]
[EventCountry "CHI"]
[SourceTitle "playchess.com"]
[Source "ChessBase"]
[SourceQuality "1"]
[TimeControl "5400+30"]

1. d4 {[%emt 0:00:00]} d5 {[%emt 0:00:00]} 2. Nf3 {[%emt 0:00:00]} Nf6 {[%emt 0:00:00]} 3. c4 {[%emt 0:00:18]} e6 {[%emt 0:00:00]} 4. g3 {[%emt 0:00:11]} Bb4+ {[%emt 0:00:02]} 5. Nc3 {[%emt 0:00:04]} O-O {[%emt 0:01:27]} 6. Bg2 {[%emt 0:00:05]} c6 {[%emt 0:00:32]} 7. O-O {[%emt 0:00:30]} Nbd7 {[%emt 0:00:17]} 8. Qb3 {[%emt 0:04:50]} Be7 {[%emt 0:02:08]} 9. Rd1 {[%emt 0:03:02]} Qb6 {[%emt 0:03:16]} 10. Qc2 {[%emt 0:04:10]} dxc4 {[%emt 0:07:24]} 11. e4 {[%emt 0:00:19]} e5 {[%emt 0:00:06]} 12. d5 {[%emt 0:11:16]} cxd5 {[%emt 0:03:31]} 13. exd5 {[%emt 0:03:36]} a6 {[%emt 0:05:37]} 14. Be3 {[%emt 0:09:30]} Qc7 {[%emt 0:01:46]} 15. Ng5 {[%emt 0:01:09]} Bc5 {[%emt 0:11:28]} 16. d6 {[%emt 0:01:44]} Bxd6 {[%emt 0:01:40]} 17. Rxd6 {[%emt 0:01:09]} Qxd6 {[%emt 0:09:37]} 18. Rd1 {[%emt 0:00:21]} Qb4 {[%emt 0:02:16]} 19. Rxd7 {[%emt 0:18:47]} h6 {[%emt 0:01:31]} 20. Nd5 {[%emt 0:08:17]} Qe1+ {[%emt 0:00:20]} 21. Bf1 {[%emt 0:00:01]} hxg5 {[%emt 0:00:48]} 22. Bd2 {[%emt 0:03:59]} Qa1 {[%emt 0:01:44]} 23. Nxf6+ {[%emt 0:02:18]} gxf6 {[%emt 0:00:10]} 24. Rxf7 {[%emt 0:01:48]} Kxf7 {[%emt 0:08:00]} 25. Qh7+ {[%emt 0:00:10]} Ke6 {[%emt 0:00:05]} 26. Bb4 {[%emt 0:01:28]} Re8 {[%emt 0:01:54]} 27. Qh5 {[%emt 0:04:55]} Bd7 {[%emt 0:10:52]} 28. Qh3+ {[%emt 0:00:56]} Kf7 {[%emt 0:00:03]} 29. Qh7+ {[%emt 0:00:10]} Ke6 {[%emt 0:00:04]} 30. Qh3+ {[%emt 0:00:07]} Kf7 {[%emt 0:00:04]} 31. Qh7+ {[%emt 0:00:19]} Ke6 {[%emt 0:00:04]} 1/2-1/2

[Event "Chile-ch Absolute 2018-19"]
[Site "Santiago"]
[Date "2019.02.28"]
[Round "10.3"]
[White "Torres Bravo, Cristobal"]
[Black "Abarca Gonzalez, Nicolas"]
[Result "1/2-1/2"]
[ECO "E62"]
[WhiteElo "2347"]
[BlackElo "2418"]
[Annotator "ChessBase"]
[PlyCount "123"]
[EventDate "2019.02.20"]
[EventType "tourn"]
[EventCountry "CHI"]
[SourceTitle "playchess.com"]
[Source "ChessBase"]
[SourceQuality "1"]
[TimeControl "5400+30"]

1. d4 {[%emt 0:00:00]} Nf6 {[%emt 0:06:33]} 2. Nf3 {[%emt 0:00:00]} g6 {[%emt 0:00:20]} 3. c4 {[%emt 0:00:00]} Bg7 {[%emt 0:00:05]} 4. g3 {[%emt 0:00:06]} O-O {[%emt 0:00:05]} 5. Bg2 {[%emt 0:00:03]} d6 {[%emt 0:00:04]} 6. O-O {[%emt 0:00:05]} Na6 {[%emt 0:00:02]} 7. Nc3 {[%emt 0:01:32]} c6 {[%emt 0:00:51]} 8. a3 {[%emt 0:03:23]} Bf5 {[%emt 0:02:07]} 9. Nh4 {[%emt 0:04:10]} Bd7 {[%emt 0:06:35]} 10. b4 {[%emt 0:04:30]} Rb8 {[%emt 0:05:11]} 11. Qd3 {[%emt 0:03:42]} Qc8 {[%emt 0:17:34]} 12. Rd1 {[%emt 0:04:12]} b5 {[%emt 0:20:03]} 13. Bd2 {[%emt 0:10:23]} Nc7 {[%emt 0:04:25]} 14. cxb5 {[%emt 0:05:55]} cxb5 {[%emt 0:00:14]} 15. e4 {[%emt 0:03:44]} Rd8 {[%emt 0:11:57]} 16. Rdc1 {[%emt 0:02:52]} Qa6 {[%emt 0:01:09]} 17. h3 {[%emt 0:05:11]} e5 {[%emt 0:03:53]} 18. Nf3 {[%emt 0:07:59]} Be6 {[%emt 0:01:40]} 19. d5 {[%emt 0:02:52]} Bd7 {[%emt 0:00:23]} 20. Be3 {[%emt 0:00:29]} Qb7 {[%emt 0:12:50]} 21. Nd2 {[%emt 0:01:44]} Rdc8 {[%emt 0:03:00]} 22. Nb3 {[%emt 0:01:16]} a6 {[%emt 0:00:08]} 23. Na5 {[%emt 0:00:21]} Qa8 {[%emt 0:00:01]} 24. Kh2 {[%emt 0:07:31]} Nce8 {[%emt 0:01:14]} 25. Ra2 {[%emt 0:00:37]} Rc7 {[%emt 0:00:08]} 26. Rac2 {[%emt 0:00:09]} h5 {[%emt 0:00:17]} 27. Qe2 {[%emt 0:03:16]} Kh7 {[%emt 0:00:31]} 28. Qd2 {[%emt 0:01:47]} Ng8 {[%emt 0:00:21]} 29. Ne2 {[%emt 0:03:37]} Rxc2 {[%emt 0:00:27]} 30. Rxc2 {[%emt 0:00:10]} Ne7 {[%emt 0:00:04]} 31. f4 {[%emt 0:01:22]} Rc8 {[%emt 0:00:13]} 32. fxe5 {[%emt 0:02:00]} Rxc2 {[%emt 0:00:04]} 33. Qxc2 {[%emt 0:00:04]} Bxe5 {[%emt 0:00:02]} 34. Bf4 {[%emt 0:01:00]} f6 {[%emt 0:00:05]} 35. h4 {[%emt 0:01:51]} Kg7 {[%emt 0:00:50]} 36. Qd2 {[%emt 0:01:03]} Qc8 {[%emt 0:00:19]} 37. Nd4 {[%emt 0:00:43]} Kf7 {[%emt 0:01:08]} 38. Nf3 {[%emt 0:03:19]} Ba1 {[%emt 0:00:45]} 39. Nc6 {[%emt 0:01:54]} Nxc6 {[%emt 0:02:26]} 40. dxc6 {[%emt 0:00:10]} Be6 {[%emt 0:00:01]} 41. Bxd6 {[%emt 0:07:25]} Qxc6 {[%emt 0:00:08]} 42. e5 {[%emt 0:00:33]} Qd7 {[%emt 0:01:10]} 43. Qc1 {[%emt 0:02:17]} Nxd6 {[%emt 0:01:05]} 44. Qxa1 {[%emt 0:00:07]} Nc4 {[%emt 0:00:58]} 45. exf6 {[%emt 0:00:13]} Kf8 {[%emt 0:00:24]} 46. Qc1 {[%emt 0:00:26]} Kf7 {[%emt 0:00:34]} 47. Qc3 {[%emt 0:01:49]} Kf8 {[%emt 0:00:24]} 48. Qc1 {[%emt 0:00:35]} Kf7 {[%emt 0:00:03]} 49. Qc3 {[%emt 0:01:16]} Kf8 {[%emt 0:00:04]} 50. Ng5 {[%emt 0:00:07]} Bf7 {[%emt 0:00:51]} 51. Qf3 {[%emt 0:00:39]} Ne5 {[%emt 0:01:06]} 52. Qa8+ {[%emt 0:00:13]} Be8 {[%emt 0:00:01]} 53. Qd5 {[%emt 0:01:13]} Ng4+ {[%emt 0:00:32]} 54. Kh1 {[%emt 0:00:05]} Nxf6 {[%emt 0:00:31]} 55. Qxd7 {[%emt 0:02:20]} Nxd7 {[%emt 0:00:03]} 56. Bb7 {[%emt 0:00:11]} Nb8 {[%emt 0:00:32]} 57. Kg1 {[%emt 0:00:28]} Ke7 {[%emt 0:00:20]} 58. Kf2 {[%emt 0:00:11]} Bc6 {[%emt 0:00:32]} 59. Bc8 {[%emt 0:00:33]} Bd7 {[%emt 0:01:10]} 60. Bb7 {[%emt 0:00:18]} Bc6 {[%emt 0:00:02]} 61. Bc8 {[%emt 0:00:17]} Bd7 {[%emt 0:00:26]} 62. Bb7 {[%emt 0:00:14]} 1/2-1/2

[Event "Chile-ch Absolute 2018-19"]
[Site "Santiago"]
[Date "2019.02.27"]
[Round "10.4"]
[White "Vergara Jofre, Felipe"]
[Black "Cuevas Araya, Walter"]
[Result "1-0"]
[ECO "B12"]
[WhiteElo "2265"]
[BlackElo "2187"]
[Annotator "NA"]
[PlyCount "65"]
[EventDate "2019.02.20"]
[EventType "tourn"]
[EventCountry "CHI"]
[SourceTitle "playchess.com"]
[Source "ChessBase"]
[SourceQuality "1"]
[TimeControl "5400+30"]

1. e4 {[%emt 0:00:00]} c6 {[%emt 0:01:25]} 2. d4 {[%emt 0:00:00]} d5 {[%emt 0:00:05]} 3. e5 {[%emt 0:00:00]} c5 {[%emt 0:01:07]} 4. dxc5 {[%emt 0:00:00]} e6 {[%emt 0:00:03]} 5. Nf3 {[%emt 0:00:11]} Bxc5 {[%emt 0:04:14]} 6. Bd3 {[%emt 0:00:44]} Nc6 {[%emt 0:03:17]} 7. O-O {[%emt 0:03:08]} Nb4 {[%emt 0:02:04]} 8. Be2 {[%emt 0:03:08]} Qc7 {[%emt 0:04:53]} 9. a3 {[%emt 0:00:26]} Nc6 {[%emt 0:00:38]} 10. b4 {[%emt 0:00:28]} Bf8 {[%emt 0:08:33]} 11. Bb2 {[%emt 0:05:18]} Nge7 {[%emt 0:02:11]} 12. Nbd2 {[%emt 0:03:40]} Ng6 {[%emt 0:00:32]} 13. c4 {[%emt 0:01:48]} Be7 {[%emt 0:06:45]} 14. Rc1 {[%emt 0:05:59]} d4 {[%emt 0:09:10]} 15. Nxd4 {[%emt 0:01:56]} Nxd4 {[%emt 0:01:06]} 16. Bxd4 {[%emt 0:00:02]} O-O {[%emt 0:00:05]} 17. f4 {[%emt 0:02:49]} a5 {[%emt 0:00:32]} 18. c5 {[%emt 0:06:19]} Rd8 {[%emt 0:01:10]} 19. Ne4 {[%emt 0:02:31]} axb4 {[%emt 0:00:40]} 20. axb4 {[%emt 0:00:43]} Bd7 {[%emt 0:00:45]} 21. Nd6 {[%emt 0:03:08]} Bc6 {[%emt 0:00:44]} 22. Bc4 {[%emt 0:06:14]} Bxd6 {[%emt 0:03:42]} 23. exd6 {[%emt 0:00:22]} Qd7 {[%emt 0:00:07]} 24. Bb2 {[%emt 0:06:56]} Kh8 {[%emt 0:02:30]} 25. Qd3 {[%emt 0:06:17]} b5 {[%emt 0:01:23]} 26. Bb3 {[%emt 0:02:08]} Qb7 {[%emt 0:01:14]} 27. f5 {[%emt 0:05:17]} exf5 {[%emt 0:01:06]} 28. Rxf5 {[%emt 0:01:15]} Rd7 {[%emt 0:00:19]} 29. Qc3 {[%emt 0:03:47]} Rg8 {[%emt 0:01:12]} 30. Re1 {[%emt 0:00:46]} Be4 {[%emt 0:06:55]} 31. Qd4 {[%emt 0:03:29]} Nh4 {[%emt 0:03:57]} 32. Rh5 {[%emt 0:00:38]} Bc2 {[%emt 0:01:45]} 33. Qxg7+ {[%emt 0:00:22]} 1-0

[Event "Chile-ch Absolute 2018-19"]
[Site "Santiago"]
[Date "2019.02.27"]
[Round "10.5"]
[White "Garcia Cardenas, Pablo"]
[Black "Aguirre Contreras, Cristian"]
[Result "1-0"]
[ECO "D37"]
[WhiteElo "2449"]
[BlackElo "2252"]
[Annotator "NA"]
[PlyCount "65"]
[EventDate "2019.02.20"]
[EventType "tourn"]
[EventCountry "CHI"]
[SourceTitle "playchess.com"]
[Source "ChessBase"]
[SourceQuality "1"]
[TimeControl "5400+30"]

1. d4 {[%emt 0:00:00]} Nf6 {[%emt 0:00:11]} 2. c4 {[%emt 0:00:00]} e6 {[%emt 0:00:06]} 3. Nc3 {[%emt 0:00:00]} d5 {[%emt 0:00:05]} 4. Nf3 {[%emt 0:00:00]} Be7 {[%emt 0:00:17]} 5. Bf4 {[%emt 0:00:04]} O-O {[%emt 0:01:13]} 6. e3 {[%emt 0:00:04]} a6 {[%emt 0:01:26]} 7. Rc1 {[%emt 0:11:39]} Nbd7 {[%emt 0:03:04]} 8. c5 {[%emt 0:08:54]} Nh5 {[%emt 0:08:29]} 9. Bd3 {[%emt 0:00:07]} Nxf4 {[%emt 0:11:26]} 10. exf4 {[%emt 0:00:02]} Re8 {[%emt 0:00:18]} 11. O-O {[%emt 0:03:28]} g6 {[%emt 0:12:05]} 12. b4 {[%emt 0:09:42]} b5 {[%emt 0:10:21]} 13. a4 {[%emt 0:16:56]} c6 {[%emt 0:00:38]} 14. Qb3 {[%emt 0:01:30]} Qc7 {[%emt 0:04:02]} 15. g3 {[%emt 0:00:27]} f6 {[%emt 0:00:41]} 16. Rfe1 {[%emt 0:06:41]} Kf7 {[%emt 0:09:51]} 17. axb5 {[%emt 0:07:18]} axb5 {[%emt 0:00:11]} 18. Re3 {[%emt 0:14:43]} Bf8 {[%emt 0:01:11]} 19. Rce1 {[%emt 0:00:52]} Bb7 {[%emt 0:00:44]} 20. h4 {[%emt 0:00:54]} Bg7 {[%emt 0:05:43]} 21. Bxb5 {[%emt 0:01:07]} e5 {[%emt 0:04:27]} 22. Nxd5 {[%emt 0:06:31]} cxd5 {[%emt 0:00:34]} 23. c6 {[%emt 0:00:13]} Bxc6 {[%emt 0:06:05]} 24. Rc1 {[%emt 0:00:50]} Nb8 {[%emt 0:00:44]} 25. Bxc6 {[%emt 0:02:06]} Nxc6 {[%emt 0:00:22]} 26. Qxd5+ {[%emt 0:00:19]} Re6 {[%emt 0:01:01]} 27. Rxe5 {[%emt 0:00:32]} Rae8 {[%emt 0:01:36]} 28. b5 {[%emt 0:03:13]} fxe5 {[%emt 0:03:55]} 29. Ng5+ {[%emt 0:00:10]} Kf8 {[%emt 0:00:30]} 30. Nxe6+ {[%emt 0:01:26]} Rxe6 {[%emt 0:00:02]} 31. Qxe6 {[%emt 0:00:05]} Nxd4 {[%emt 0:00:23]} 32. Rxc7 {[%emt 0:00:59]} Nxe6 {[%emt 0:00:02]} 33. b6 {[%emt 0:00:06]} 1-0